bitfinex/quotes_ETHUSD_20250703
["timestamp","ask_amount","ask_price","bid_price","bid_amount"]
[1751563363409,58.611966,2580.2,2580.1,1e-08]
[1751563363584,54.529966,2580.2,2580.1,1e-08]
[1751563364423,55.307666,2580.2,2580.1,1e-08]
[1751563365413,14.42596899,2580.0,2579.9,0.02]
[1751563365726,32.18822992,2580.0,2579.9,0.02]
[1751563366901,23.77438429,2580.0,2579.9,0.02]
[1751563367711,24.58118429,2580.0,2579.9,0.02]
[1751563368223,54.58118429,2580.0,2579.9,0.02]
[1751563368392,58.43007677,2580.0,2579.9,0.02]
[1751563368791,57.49969637,2580.0,2579.9,0.02]
[1751563368988,58.42935689,2580.0,2579.9,0.02]
[1751563370711,57.62255689,2580.0,2579.9,0.02]
[1751563371118,57.62216625,2580.0,2579.9,0.02]
[1751563372497,58.44516625,2580.0,2579.9,0.02]
[1751563372997,30.0,2579.4,2577.7,3.87935354]
[1751563373193,22.84116717,2579.1,2578.8,0.02]
[1751563373429,31.99487195,2579.1,2578.8,0.02]
[1751563373634,33.0198946,2579.1,2578.8,0.02]
[1751563374539,32.09023408,2579.1,2578.8,0.02]
[1751563374737,33.76577196,2579.1,2578.8,0.02]
[1751563374895,24.52892633,2579.1,2578.8,0.02]
[1751563375806,16.46590368,2579.1,2578.9,0.7974]
[1751563376004,1.2921449,2579.1,2578.9,0.02]
[1751563376194,1.2921449,2579.1,2579.0,0.7974]
[1751563376395,0.36304426,2579.1,2579.0,0.7974]
[1751563376926,0.36304426,2579.1,2579.0,4.67487188]
[1751563377132,9.15091102,2579.3,2579.2,0.7591]
[1751563377521,8.22324334,2579.3,2579.2,0.7591]
[1751563377907,8.22324334,2579.3,2579.2,4.63627121]
[1751563378233,8.22324334,2579.3,2579.2,0.7591]
[1751563378397,8.22324334,2579.3,2579.2,4.63627121]
[1751563378398,0.36224334,2579.3,2579.2,4.63627121]
[1751563378604,9.316,2579.6,2579.3,3.87689843]
[1751563378605,0.92766768,2579.5,2579.3,3.87689843]
[1751563378814,0.36221969,2579.4,2579.3,4.64369843]
[1751563379012,0.8121,2580.4,2579.3,9.21941583]
[1751563379213,1.28975014,2580.2,2579.6,0.7668]
[1751563379442,0.01,2580.4,2580.0,0.7668]
[1751563379643,0.4140658,2580.3,2580.0,0.7668]
[1751563379806,1.34161383,2580.3,2580.0,0.7668]
[1751563380000,0.36215467,2580.2,2580.0,0.7668]
[1751563380199,4.23795564,2580.2,2580.0,0.7668]
[1751563380405,0.36215467,2580.1,2580.0,0.7668]
[1751563380705,4.29668677,2580.1,2580.0,0.7668]
[1751563380934,3.87614694,2579.9,2579.4,0.8315]
[1751563381111,3.91486028,2579.9,2579.4,0.8315]
[1751563381437,3.87627237,2579.8,2579.4,0.8315]
[1751563382946,3.8765158,2579.7,2579.4,0.8315]
[1751563383241,0.1936,2579.5,2579.4,0.8315]
[1751563388126,4.07032029,2579.5,2579.4,0.8315]
[1751563388655,0.1936,2579.5,2579.4,0.8315]
[1751563390365,4.07032029,2579.5,2579.4,0.8315]
[1751563390531,4.43260392,2579.5,2579.4,0.8315]
[1751563390732,4.47131726,2579.5,2579.4,0.8315]
[1751563391035,0.55588363,2579.5,2579.4,0.8315]
[1751563391266,0.1936,2579.5,2579.4,0.8315]
[1751563393062,0.1936,2579.5,2579.4,4.70837059]
[1751563393454,0.1936,2579.5,2579.4,5.57078674]
[1751563393955,0.1936,2579.5,2579.4,0.8315]
[1751563394540,3.8768985,2579.4,2579.2,0.795]
[1751563394742,0.1936,2579.5,2579.2,0.795]
[1751563394743,3.87702089,2579.3,2579.2,0.795]
[1751563394946,3.91566946,2579.4,2579.2,0.795]
[1751563395562,0.03871334,2579.4,2579.2,0.795]
[1751563395953,0.40094775,2579.5,2579.2,0.795]
[1751563396154,0.40097253,2579.5,2579.2,0.795]
[1751563396464,4.27770426,2579.5,2579.2,0.795]
[1751563396667,3.91545047,2579.5,2579.2,0.795]
[1751563396878,0.03871334,2579.5,2579.2,0.795]
[1751563397071,0.1936,2579.3,2579.2,0.795]
[1751563397238,0.1936,2579.3,2579.2,4.67217121]
[1751563397440,0.1936,2579.3,2579.1,0.01]
[1751563397850,0.55585642,2579.3,2579.1,0.01]
[1751563398053,0.1936,2579.3,2579.1,0.01]
[1751563398338,0.1936,2579.3,2579.1,3.92597703]
[1751563398543,0.1936,2579.3,2579.2,0.7713]
[1751563399570,3.87717121,2579.2,2579.1,0.01]
[1751563399762,4.27814097,2579.2,2579.1,0.01]
[1751563399960,4.27808639,2579.2,2579.1,0.01]
[1751563401400,5.1667027,2579.2,2579.1,0.01]
[1751563401559,5.20541604,2579.2,2579.1,0.01]
[1751563401772,7.93428237,2579.2,2579.1,0.01]
[1751563402078,7.89556903,2579.2,2579.1,0.01]
[1751563402481,11.14906903,2579.2,2579.1,0.01]
[1751563402683,11.35097419,2579.2,2579.1,0.01]
[1751563405505,8.64747419,2579.2,2579.1,0.01]
[1751563405670,18.43447419,2579.2,2579.1,0.01]
[1751563407788,17.68256903,2579.2,2579.1,0.01]
[1751563410301,18.23256903,2579.2,2579.1,0.01]
[1751563410586,18.43438881,2579.2,2579.1,0.01]
[1751563412219,28.43438881,2579.2,2579.1,0.01]
[1751563412419,29.19138881,2579.2,2579.1,0.01]
[1751563413924,36.99138881,2579.2,2579.1,0.01]
[1751563418195,36.99150224,2579.2,2579.1,0.01]
[1751563419095,36.99150224,2579.2,2579.1,1e-08]
[1751563420039,29.19150224,2579.2,2579.1,1e-08]
[1751563422720,0.55,2578.9,2578.8,0.02]
[1751563422924,63.61118828,2578.9,2578.8,0.02]
[1751563423230,63.57247494,2578.9,2578.8,0.02]
[1751563423433,33.57247494,2578.9,2578.8,0.02]
[1751563424199,25.15862931,2578.9,2578.8,0.02]
[1751563424532,55.92572931,2578.9,2578.8,0.02]
[1751563425425,3.8785246,2578.3,2577.8,0.03879276]
[1751563425752,3.8785246,2578.3,2577.7,0.1936]
[1751563425753,4.27955321,2578.3,2578.0,0.8116]
[1751563425927,5.20688286,2578.3,2578.0,0.8116]
[1751563426137,1.28964492,2578.3,2578.2,0.7765]
[1751563426310,5.16816952,2578.3,2578.2,0.7765]
[1751563426647,0.36231527,2578.3,2578.2,0.7765]
[1751563426803,5.16816952,2578.3,2578.2,0.7765]
[1751563427004,1.28964492,2578.3,2578.2,0.7765]
[1751563427204,5.36176952,2578.3,2578.2,0.7765]
[1751563427504,1.48324492,2578.3,2578.2,0.7765]
[1751563428138,7.863,2578.7,2578.3,0.7665]
[1751563428366,3.21945456,2579.2,2578.5,0.8289]
[1751563428367,0.36224233,2578.6,2578.5,0.8289]
[1751563428509,0.1936,2578.6,2578.5,0.8289]
[1751563430543,0.55584233,2578.6,2578.5,0.8289]
[1751563431454,4.4339157,2578.6,2578.5,0.8289]
[1751563438272,5.36141491,2578.6,2578.5,0.8289]
[1751563438476,4.4339157,2578.6,2578.5,0.8289]
[1751563439044,5.36273894,2578.6,2578.5,0.8289]
[1751563439249,4.4339157,2578.6,2578.5,0.8289]
[1751563439456,3.87823058,2578.5,2578.3,0.7822]
[1751563439673,0.55584233,2578.4,2578.3,0.7822]
[1751563439876,0.1936,2578.4,2578.3,0.7822]
[1751563440171,0.55584233,2578.4,2578.3,0.7822]
[1751563440374,0.1936,2578.4,2578.3,0.7822]
[1751563440578,0.55584233,2578.4,2578.3,0.7822]
[1751563440763,4.07197418,2578.4,2578.3,0.7822]
[1751563440965,4.43421651,2578.4,2578.3,0.7822]
[1751563441474,0.55584233,2578.4,2578.3,0.7822]
[1751563444055,0.55584233,2578.4,2578.2,0.01]
[1751563444249,0.96753658,2578.5,2578.2,4.68176179]
[1751563444250,0.36224233,2578.3,2578.2,4.68176179]
[1751563444455,3.87800101,2578.7,2578.2,4.68176179]
[1751563444456,0.55584233,2578.4,2578.2,0.80308675]
[1751563444753,0.36309924,2578.3,2578.2,0.80308675]
[1751563445582,0.36309924,2578.3,2578.2,4.68176179]
[1751563445790,0.1936,2578.4,2578.2,5.55717148]
[1751563446193,0.1936,2578.4,2578.3,3.8785246]
[1751563446489,0.1936,2578.4,2578.2,1.67849644]
[1751563446788,0.1936,2578.4,2578.3,3.8785246]
[1751563447167,0.55669924,2578.4,2578.2,4.68168376]
[1751563447372,0.1936,2578.4,2578.2,4.68168376]
[1751563447855,0.55669924,2578.4,2578.2,4.68168376]
[1751563448060,0.1936,2578.4,2578.2,4.68168376]
[1751563448585,0.55669924,2578.4,2578.2,4.68168376]
[1751563448801,0.1936,2578.4,2578.2,4.68168376]
[1751563449091,0.36309924,2578.5,2578.4,3.87837418]
[1751563449292,0.92882324,2578.7,2578.5,0.8214]
[1751563449293,0.36309924,2578.6,2578.5,0.8214]
[1751563450681,0.36309924,2578.7,2578.5,0.8214]
[1751563450873,0.36309924,2578.6,2578.5,0.8214]
[1751563451064,0.36309924,2578.7,2578.5,0.8214]
[1751563451360,0.36309924,2578.7,2578.6,3.87807337]
[1751563451361,0.55669924,2578.7,2578.6,3.87807337]
[1751563451695,0.55669924,2578.7,2578.5,5.55736469]
[1751563452064,0.1936,2578.7,2578.5,5.55736469]
[1751563452392,0.55654659,2578.7,2578.6,3.87807337]
[1751563453387,0.55654659,2578.7,2578.5,1.67922859]
[1751563453589,0.55654659,2578.7,2578.5,0.8214]
[1751563453894,0.55654659,2578.7,2578.4,0.751]
[1751563453895,0.36294659,2578.6,2578.4,0.751]
[1751563454265,0.36294659,2578.6,2578.4,4.62935928]
[1751563454460,0.36294659,2578.6,2578.4,4.66814302]
[1751563455198,0.36294659,2578.6,2578.4,0.751]
[1751563457165,0.36295716,2578.6,2578.4,0.751]
[1751563457359,0.36295716,2578.6,2578.4,4.62935004]
[1751563457786,0.36295716,2578.5,2578.4,4.62935004]
[1751563457987,0.36295716,2578.6,2578.4,0.751]
[1751563458184,0.36295716,2578.5,2578.4,0.751]
[1751563458388,4.24109668,2578.6,2578.3,0.1936]
[1751563458596,0.36295716,2578.5,2578.2,5.57961955]
[1751563460097,0.36295716,2578.5,2578.2,0.8256]
[1751563460303,0.36295716,2578.5,2578.2,0.86438675]
[1751563460599,0.36295716,2578.5,2578.3,0.01]
[1751563460600,0.36295716,2578.4,2578.3,0.01]
[1751563461168,4.24133134,2578.4,2578.3,0.01]
[1751563461389,5.17052533,2578.4,2578.3,0.01]
[1751563461867,0.36295716,2578.4,2578.3,0.01]
[1751563462410,1.29215115,2578.4,2578.3,0.01]
[1751563462593,5.79129323,2578.4,2578.3,0.01]
[1751563463205,5.83013667,2578.4,2578.3,0.01]
[1751563463441,6.38013667,2578.4,2578.3,0.01]
[1751563463616,6.5819755,2578.4,2578.3,0.01]
[1751563463805,17.3967755,2578.4,2578.3,0.01]
[1751563463997,17.35806216,2578.4,2578.3,0.01]
[1751563470218,43.61147023,2578.3,2578.2,0.01]
[1751563470459,56.61864396,2578.3,2578.2,0.01]
[1751563470614,18.75264396,2578.3,2578.2,0.01]
[1751563470814,28.54364396,2578.3,2578.2,0.01]
[1751563473615,28.54164396,2578.3,2578.2,0.01]
[1751563475045,58.54164396,2578.3,2578.2,0.01]
[1751563475618,68.54164396,2578.3,2578.2,0.01]
[1751563475952,45.20517504,2578.2,2578.1,0.01]
[1751563476254,50.34503825,2578.2,2578.1,0.01]
[1751563476747,20.34503825,2578.2,2578.1,0.01]
[1751563478148,19.41584426,2578.2,2578.1,0.01]
[1751563478324,20.34127533,2578.2,2578.1,0.01]
[1751563479245,30.12927533,2578.2,2578.1,0.01]
[1751563484057,60.12927533,2578.2,2578.1,0.01]
[1751563484960,67.92927533,2578.2,2578.1,0.01]
[1751563488163,46.37004953,2578.2,2578.1,0.01]
[1751563491749,15.39502549,2578.1,2578.0,1e-08]
[1751563492075,3.88018004,2577.2,2577.1,0.01]
[1751563492240,4.28067012,2577.2,2577.1,0.01]
[1751563492438,5.208025,2577.2,2577.1,0.01]
[1751563494281,1.32829897,2577.2,2577.1,0.01]
[1751563494476,1.28958563,2577.2,2577.1,0.01]
[1751563494788,5.16976567,2577.2,2577.1,0.01]
[1751563496656,1.28958563,2577.2,2577.1,0.01]
[1751563496958,5.16976567,2577.2,2577.1,0.01]
[1751563497284,5.20847901,2577.2,2577.1,0.01]
[1751563498804,5.20842035,2577.2,2577.1,0.01]
[1751563499168,7.01120827,2577.2,2577.1,0.01]
[1751563501399,4.07403902,2577.1,2576.8,0.7926]
[1751563501599,0.36223075,2577.0,2576.8,0.7926]
[1751563501802,0.55583075,2576.9,2576.8,0.7926]
[1751563501998,0.1936,2576.9,2576.8,0.7926]
[1751563502200,0.55583075,2576.9,2576.8,0.7926]
[1751563502508,0.1936,2576.9,2576.8,0.7926]
[1751563502874,0.55583075,2576.9,2576.8,0.7926]
[1751563503105,0.1936,2576.9,2576.8,0.7926]
[1751563503703,0.1936,2576.9,2576.8,4.67338236]
[1751563503976,0.36223075,2577.1,2576.9,3.88063176]
[1751563504203,0.36223075,2577.0,2576.9,3.91943807]
[1751563504391,0.36223075,2577.1,2577.0,4.63708117]
[1751563504592,0.36223075,2577.1,2577.0,0.7566]
[1751563505711,0.36223075,2577.1,2577.0,4.63708117]
[1751563505911,0.36223075,2577.1,2577.0,5.57866048]
[1751563506211,0.36223075,2577.2,2577.1,4.6350306]
[1751563506505,7.8,2577.5,2577.3,4.63465236]
[1751563506707,0.36222502,2577.4,2577.3,4.63465236]
[1751563507790,7.8,2577.5,2577.4,3.87987894]
[1751563507993,8.16224576,2577.5,2577.3,4.63464234]
[1751563508313,7.8,2577.5,2577.3,4.63464234]
[1751563508513,0.1936,2577.6,2577.3,4.63464234]
[1751563508697,1.48331989,2577.6,2577.3,4.63464234]
[1751563508903,0.36224243,2577.5,2577.3,4.63464234]
[1751563510014,0.36224243,2577.5,2577.3,4.67344263]
[1751563510402,0.55584243,2577.6,2577.3,4.67344263]
[1751563511704,0.55598735,2577.6,2577.3,4.67344263]
[1751563512705,0.55598735,2577.6,2577.4,3.87987344]
[1751563512895,0.55598735,2577.6,2577.3,4.63466609]
[1751563513516,0.55598735,2577.6,2577.4,3.8798739]
[1751563513816,0.55598735,2577.6,2577.3,4.63464633]
[1751563514011,0.55598735,2577.6,2577.3,4.67344662]
[1751563514613,0.55598735,2577.6,2577.4,3.87986125]
[1751563514813,0.55597849,2577.6,2577.4,3.87986125]
[1751563515416,0.55597849,2577.6,2577.3,4.6734725]
[1751563516005,0.55597849,2577.6,2577.3,0.7547]
[1751563516584,0.55597849,2577.6,2577.3,4.67352273]
[1751563518023,0.55597849,2577.6,2577.3,4.63472244]
[1751563519631,0.55597849,2577.6,2577.4,0.03879878]
[1751563519829,0.55597849,2577.6,2577.3,4.63472244]
[1751563520125,0.57597849,2577.6,2577.3,0.7547]
[1751563520811,0.57597849,2577.6,2577.4,0.03879878]
[1751563523830,0.57617208,2577.6,2577.4,0.03879878]
[1751563524403,0.57617208,2577.6,2577.4,3.91866948]
[1751563524647,0.57617358,2577.6,2577.5,3.87972841]
[1751563524821,0.38257358,2577.6,2577.5,0.7895]
[1751563525131,0.38257358,2577.6,2577.3,0.1936]
[1751563525132,0.02,2577.6,2577.3,0.1936]
[1751563525311,0.36257358,2577.5,2577.0,0.8093]
[1751563525507,0.36257358,2577.5,2577.2,3.8801548]
[1751563525719,4.26216405,2577.6,2577.1,3.91904315]
[1751563525911,4.26216405,2577.6,2577.2,3.88017453]
[1751563525912,0.36257358,2577.5,2577.2,3.88017453]
[1751563526099,0.02,2577.6,2577.3,3.87998611]
[1751563526100,0.38257358,2577.6,2577.3,3.87998611]
[1751563526304,0.38257358,2577.6,2577.4,0.8225]
[1751563527459,0.02,2577.6,2577.4,0.8225]
[1751563527659,0.02,2577.6,2577.4,4.70237611]
[1751563527809,0.02,2577.6,2577.4,5.5644955]
[1751563528138,0.02,2577.6,2577.4,5.60329428]
[1751563528947,0.02,2577.6,2577.5,3.87972841]
[1751563529321,0.38257358,2577.6,2577.5,3.87972841]
[1751563529527,0.02,2577.6,2577.5,3.87972841]
[1751563529750,0.02,2577.6,2577.5,3.91852569]
[1751563530543,0.02,2577.6,2577.5,4.86682495]
[1751563531931,0.02,2577.6,2577.5,3.91852569]
[1751563532334,0.38257358,2577.6,2577.5,3.91852569]
[1751563532515,0.02,2577.6,2577.5,3.91852569]
[1751563532720,0.38257358,2577.6,2577.5,3.91852569]
[1751563532932,0.02,2577.6,2577.5,3.91852569]
[1751563533133,0.38257358,2577.6,2577.5,3.91852569]
[1751563533329,0.02,2577.6,2577.5,3.91852569]
[1751563533548,0.38257358,2577.6,2577.5,4.78061599]
[1751563533860,8.82334778,2577.6,2577.0,1.08193]
[1751563534024,5.17051514,2577.5,2576.9,0.766]
[1751563534367,0.36294371,2577.4,2577.0,3.8804759]
[1751563534660,0.36294371,2577.3,2577.1,0.0388033]
[1751563535163,0.36294371,2577.3,2577.0,3.8804759]
[1751563536947,0.36294371,2577.2,2577.1,3.9191294]
[1751563537148,0.36294371,2577.3,2577.1,3.9191294]
[1751563537359,0.36294371,2577.2,2577.1,3.9191294]
[1751563537563,0.36294371,2577.3,2577.1,3.9191294]
[1751563537861,0.36294371,2577.2,2577.1,3.9191294]
[1751563538038,0.36294371,2577.3,2577.1,3.9191294]
[1751563538240,0.36294371,2577.2,2577.1,3.9191294]
[1751563538470,0.36294371,2577.3,2577.1,3.9191294]
[1751563538771,0.36294371,2577.2,2577.1,3.9191294]
[1751563539072,0.36294371,2577.3,2577.1,3.9191294]
[1751563539384,0.36294371,2577.2,2577.1,3.9191294]
[1751563539556,0.36294371,2577.3,2577.1,3.9191294]
[1751563539754,0.36294371,2577.2,2577.1,3.9191294]
[1751563539966,0.36294371,2577.3,2577.1,3.9191294]
[1751563540167,0.36294371,2577.2,2577.1,3.9191294]
[1751563540357,0.36294371,2577.3,2577.1,3.9191294]
[1751563540556,0.36294371,2577.2,2577.1,3.9191294]
[1751563540852,0.36294371,2577.3,2577.1,3.9191294]
[1751563541171,0.36294371,2577.2,2577.1,3.9191294]
[1751563541356,0.1936,2577.4,2577.1,3.9191294]
[1751563541556,0.36310281,2577.3,2577.1,3.9191294]
[1751563541757,0.36310281,2577.2,2577.1,3.9191294]
[1751563542054,0.1936,2577.4,2577.1,3.9191294]
[1751563542055,0.36310281,2577.3,2577.1,3.9191294]
[1751563542258,0.36310281,2577.2,2577.1,3.9191294]
[1751563542476,0.36310281,2577.3,2577.1,3.9191294]
[1751563542773,0.36310281,2577.2,2577.1,3.9191294]
[1751563542976,0.36310281,2577.3,2577.1,3.9191294]
[1751563543174,0.36310281,2577.2,2577.1,3.9191294]
[1751563543397,0.36310281,2577.3,2577.1,3.9191294]
[1751563543596,0.36310281,2577.2,2577.1,3.9191294]
[1751563543765,0.36310281,2577.3,2577.1,3.9191294]
[1751563543971,0.36310281,2577.2,2577.1,3.9191294]
[1751563544302,0.36310281,2577.3,2577.2,3.88018004]
[1751563544460,0.36310281,2577.3,2577.1,4.75617641]
[1751563544661,0.36310281,2577.4,2577.1,4.75617641]
[1751563544963,0.1936,2577.5,2577.1,4.75617641]
[1751563544964,0.36310281,2577.3,2577.1,4.75617641]
[1751563545156,0.36310281,2577.4,2577.1,3.88025537]
[1751563545363,0.36310281,2577.3,2577.1,3.88025537]
[1751563545581,0.36310281,2577.4,2577.1,3.88025537]
[1751563545775,0.36310281,2577.3,2577.1,3.88025537]
[1751563545975,0.36310281,2577.4,2577.1,3.88025537]
[1751563546180,0.36310281,2577.3,2577.1,3.88025537]
[1751563546388,0.36310281,2577.4,2577.1,3.88025537]
[1751563546659,0.36310281,2577.3,2577.1,3.88025537]
[1751563546887,0.36310281,2577.4,2577.1,3.88025537]
[1751563547066,0.36310281,2577.3,2577.1,3.88025537]
[1751563547265,0.36310281,2577.4,2577.1,3.88025537]
[1751563547503,0.36310281,2577.3,2577.1,3.88025537]
[1751563547790,0.36310281,2577.4,2577.1,3.88025537]
[1751563547990,0.36310281,2577.3,2577.1,3.88025537]
[1751563548168,1.87304209,2577.5,2577.1,3.88025537]
[1751563548169,0.36310281,2577.4,2577.1,3.88025537]
[1751563548371,0.36310281,2577.3,2577.1,3.88025537]
[1751563548572,0.36310281,2577.4,2577.1,3.88025537]
[1751563548892,0.36310281,2577.3,2577.1,3.88025537]
[1751563549091,0.36310281,2577.4,2577.1,3.88025537]
[1751563549390,0.36310281,2577.3,2577.1,3.88025537]
[1751563549588,0.36310281,2577.4,2577.0,0.1936]
[1751563549892,0.36310281,2577.3,2577.0,4.07399258]
[1751563550193,0.36310281,2577.4,2577.0,4.07399258]
[1751563550392,0.36310281,2577.3,2577.0,4.07399258]
[1751563550894,0.36310281,2577.3,2577.0,0.1936]
[1751563552694,4.24319302,2577.3,2576.9,0.03880631]
[1751563552901,0.1936,2577.2,2576.9,0.03880631]
[1751563553088,0.55629582,2577.2,2576.9,0.03880631]
[1751563553278,0.1936,2577.2,2576.9,3.91942706]
[1751563554583,0.55627562,2577.2,2576.9,3.91942706]
[1751563554778,0.1936,2577.2,2576.9,3.91942706]
[1751563556589,0.36267562,2577.3,2577.2,3.88018004]
[1751563556793,0.55627562,2577.3,2577.2,3.88018004]
[1751563557109,0.36267562,2577.4,2577.3,4.66132948]
[1751563557267,0.38274176,2577.6,2577.5,3.87972841]
[1751563557470,0.38274176,2577.6,2577.5,3.91852569]
[1751563558903,0.38274176,2577.6,2577.5,3.87972841]
[1751563560812,0.38262417,2577.6,2577.5,3.87972841]
[1751563562313,0.02,2577.6,2577.5,3.87972841]
[1751563563114,0.02,2577.6,2577.5,3.91852569]
[1751563563993,0.02,2577.6,2577.4,3.91858613]
[1751563564576,0.02,2577.6,2577.3,8.6453]
[1751563564904,4.26233249,2577.6,2577.0,0.8005]
[1751563565100,0.7871,2577.3,2576.9,0.1936]
[1751563565406,4.86074202,2577.3,2576.8,8.8681]
[1751563565603,4.24295121,2577.2,2576.8,8.8681]
[1751563565917,3.88032704,2577.2,2576.8,8.0676]
[1751563566125,3.88018004,2577.2,2576.8,8.0676]
[1751563566322,3.88036042,2577.1,2576.8,0.2036]
[1751563566524,3.88063176,2576.9,2576.8,0.01]
[1751563567129,0.36221615,2576.9,2576.8,0.01]
[1751563567318,4.24284791,2576.9,2576.8,0.01]
[1751563568413,3.88063176,2576.9,2576.8,0.01]
[1751563568820,3.88049218,2577.0,2576.8,0.01]
[1751563568821,3.88056974,2577.0,2576.8,0.01]
[1751563569008,3.88063176,2576.9,2576.8,0.01]
[1751563570008,3.88054091,2577.0,2576.8,0.01]
[1751563570209,3.88063176,2576.9,2576.8,0.01]
[1751563570409,3.88054183,2577.0,2576.8,0.01]
[1751563570612,3.88063176,2576.9,2576.8,0.01]
[1751563571630,3.88055825,2577.0,2576.8,0.01]
[1751563571837,3.88063176,2576.9,2576.8,0.01]
[1751563572725,4.89613176,2576.9,2576.8,0.01]
[1751563572930,5.8704005,2576.9,2576.8,0.01]
[1751563573817,6.2320085,2576.9,2576.8,0.01]
[1751563574212,5.8704005,2576.9,2576.8,0.01]
[1751563574418,6.23194974,2576.9,2576.8,0.01]
[1751563574832,2.35131798,2576.9,2576.8,0.01]
[1751563575239,1.98976874,2576.9,2576.8,0.01]
[1751563575423,5.8704005,2576.9,2576.8,0.01]
[1751563575624,6.23193484,2576.9,2576.8,0.01]
[1751563575839,6.23190826,2576.9,2576.8,0.01]
[1751563577252,5.8704005,2576.9,2576.8,0.01]
[1751563577911,1.98976874,2576.9,2576.8,0.01]
[1751563578118,5.25752009,2576.9,2576.8,0.01]
[1751563580346,4.89613176,2576.9,2576.8,0.01]
[1751563582255,1.0155,2576.9,2576.8,0.01]
[1751563583022,0.97081036,2577.2,2576.8,0.01]
[1751563583351,0.55476382,2577.1,2576.9,3.88063176]
[1751563583556,0.1936,2577.1,2577.0,3.88048117]
[1751563583764,0.1936,2577.1,2577.0,3.91928598]
[1751563584126,0.36112512,2577.3,2577.0,4.72618598]
[1751563584327,0.55472512,2577.3,2577.1,3.88029647]
[1751563584555,0.1936,2577.3,2577.0,4.72610545]
[1751563584730,0.1936,2577.3,2577.0,0.84570481]
[1751563584921,0.55470859,2577.3,2577.0,0.84570481]
[1751563585661,0.55470859,2577.3,2577.0,4.72616803]
[1751563585859,4.43475384,2577.3,2577.0,0.84570481]
[1751563586042,4.07364525,2577.3,2576.9,3.88055637]
[1751563586929,0.1936,2577.3,2576.9,3.88055637]
[1751563587232,0.5746901,2577.3,2577.0,0.03880481]
[1751563587756,0.5746901,2577.3,2576.9,3.88055637]
[1751563587962,4.45475129,2577.3,2576.9,3.88055637]
[1751563588161,4.09366119,2577.3,2576.9,3.88055637]
[1751563588461,0.2136,2577.3,2576.9,3.88055637]
[1751563588670,0.57478493,2577.3,2576.9,3.88055637]
[1751563592049,0.57478493,2577.3,2577.2,3.88018004]
[1751563592263,0.57478493,2577.3,2577.1,3.88023034]
[1751563592670,0.57478493,2577.3,2577.0,4.63703688]
[1751563592850,0.57478493,2577.3,2577.0,4.6758994]
[1751563594286,4.45485845,2577.3,2576.9,3.88057851]
[1751563594449,0.36118493,2577.2,2576.9,3.88057851]
[1751563594877,4.24142845,2577.2,2576.8,0.01]
[1751563595077,0.36118493,2577.1,2576.8,3.89077076]
[1751563595250,0.36118493,2577.1,2576.9,0.03880631]
[1751563595950,0.55478493,2577.2,2576.9,0.03880631]
[1751563596875,0.55565628,2577.2,2576.9,0.03880631]
[1751563597882,0.55565628,2577.2,2576.9,3.88062948]
[1751563598065,0.55565628,2577.2,2576.8,3.92950462]
[1751563599188,4.43591103,2577.2,2576.8,3.92950462]
[1751563599485,0.36205628,2577.1,2576.8,3.92950462]
[1751563600487,0.36205628,2577.1,2576.8,0.04880782]
[1751563600856,0.36205628,2577.1,2576.8,3.92952624]
[1751563601272,0.55565628,2577.2,2576.8,3.92952624]
[1751563602488,0.55565628,2577.2,2576.9,3.88062182]
[1751563605095,0.55565628,2577.2,2576.8,3.92950612]
[1751563605476,0.55565628,2577.2,2576.9,3.88057083]
[1751563607200,0.55565628,2577.2,2577.0,3.88044917]
[1751563608016,0.36205628,2577.2,2577.1,3.8803306]
[1751563610271,0.36205628,2577.2,2577.1,4.77257413]
[1751563610477,0.38205628,2577.3,2577.2,3.88018004]
[1751563610678,0.02,2577.3,2577.2,3.88018004]
[1751563610878,0.02,2577.3,2577.2,3.91898184]
[1751563614315,0.02,2577.3,2577.2,5.58981711]
[1751563616724,0.47565628,2577.5,2577.3,3.87996849]
[1751563617840,0.47565628,2577.5,2577.3,3.91876878]
[1751563618915,0.47565628,2577.5,2577.2,5.55093261]
[1751563619117,0.47565628,2577.5,2577.2,3.88009734]
[1751563619494,0.47565628,2577.5,2577.1,4.73376654]
[1751563619996,0.47565628,2577.5,2577.2,0.0388018]
[1751563620428,4.35549389,2577.5,2577.1,0.85344023]
[1751563620601,0.36205628,2577.4,2577.1,0.85344023]
[1751563621338,0.36205628,2577.4,2577.2,0.0388018]
[1751563621646,0.1136,2577.5,2577.3,3.87993535]
[1751563621647,0.47565628,2577.5,2577.3,3.87993535]
[1751563621812,0.02,2577.6,2577.4,11.77967772]
[1751563622020,0.02,2577.6,2577.4,11.74087894]
[1751563622456,0.02,2577.6,2577.5,3.87972841]
[1751563623124,0.02,2577.6,2577.5,3.91852569]
[1751563623327,0.02,2577.6,2577.5,1.62410633]
[1751563624139,0.02,2577.6,2577.5,5.50383474]
[1751563625611,0.02,2577.6,2577.5,1.62410633]
[1751563626118,0.02,2577.6,2577.5,9.48410633]
[1751563626320,0.02,2577.6,2577.5,1.58530905]
[1751563626625,0.02,2577.6,2577.5,9.48410633]
[1751563626836,0.02,2577.6,2577.5,9.44530905]
[1751563627037,4.6821779,2577.6,2577.3,0.1936]
[1751563627240,3.88046591,2577.1,2576.5,3.88116271]
[1751563627455,1.71035494,2577.2,2576.7,11.73992548]
[1751563627636,0.7826,2577.2,2576.8,1.22768145]
[1751563628035,4.66285489,2577.2,2576.8,1.22768145]
[1751563628680,4.66285489,2577.2,2576.8,7.90780782]
[1751563628831,4.66285489,2577.2,2576.8,7.869]
[1751563629032,4.66285489,2577.2,2576.8,0.01]
[1751563629242,4.66285489,2577.2,2576.8,7.90780782]
[1751563629440,4.66285489,2577.2,2576.8,7.869]
[1751563630276,3.88033886,2577.1,2576.9,0.03880631]
[1751563630470,3.88033886,2577.1,2576.8,7.869]
[1751563630633,3.88033886,2577.1,2576.8,9.12119404]
[1751563632173,4.66284618,2577.2,2576.8,9.12119404]
[1751563632366,3.88033691,2577.1,2576.9,0.03880631]
[1751563632534,3.88033691,2577.1,2576.8,1.26219404]
[1751563632873,3.88055562,2577.0,2576.8,7.87]
[1751563633071,3.88055562,2577.0,2576.8,0.01]
[1751563633236,3.88063176,2576.9,2576.8,0.01]
[1751563633441,5.94370082,2576.9,2576.8,0.01]
[1751563633665,5.9823828,2576.9,2576.8,0.01]